{"text_format":"1","workbook":"xlsx","n_sheets":38,"sheets":["Game","Select Game","Help","Level1","Level2","Level3","Level4","Level5","Level6","Level7","Level8","Level9","Level10","Level11","Level12","Level13","Level14","Level15","Level16","Level17","Level19","Level18","Level20","Level21","Level22","Level23","Level24","Level25","Level26","Level27","Level28","Level29","Level30","Level31","Level32","Level33","Level34","Level35"],"not_rendered":{"charts":0,"images":0,"macros":1,"external_links":0,"defined_names":149,"comments":0,"pivot_tables":0},"unopened":[],"bounds":{"document_bytes":16777216,"sheet_cells":100000,"rows_first":2000,"rows_last":500,"rows_between":2000,"halvings":0,"cell_chars":16384,"cell_head_chars":4096},"cells_cut":0,"cells_raw":0,"read":"whole","date_system":"1900"}

{"sheet":"Game","index":0,"n_rows":4,"n_cols":31,"rows_kept":4,"cut":false,"hidden":false,"merged":[]}
[null,null,null,null,null,null,null,null,null,null,null,null,null,null,null,null,null,null,null,null,null,null,"www.glynnconsulting.co.uk"]
[null,"Nonogram play area",null,null,null,null,null,null,null,null,null,null,null,null,null,null,null,null,null,null,null,null,null,null,null,null,null,null,null,null,{"$f":"SUM(A8:Z33)","v":0}]
[]
[null,"x"]

{"sheet":"Select Game","index":1,"n_rows":39,"n_cols":10,"rows_kept":39,"cut":false,"hidden":false,"merged":[]}
[null,null,null,null,null,null,null,null,null,"www.glynnconsulting.co.uk"]
[null,null,null,null,null,null,null,null,{"$f":"RANDBETWEEN(1,COUNTA(INDIRECT(\"B5:B1000\")))","v":33}]
[]
[null,"Worksheet","Title"]
[null,"Level1",{"$f":"INDIRECT(B5&\"!E6\")","v":"Penguin"},{"$f":"HYPERLINK(\"#\"&B5&\"!a1\",\"View / Edit level\")","v":"View / Edit level"}]
[null,"Level2","Star","View / Edit level"]
[null,"Level3","Elephant","View / Edit level"]
[null,"Level4","Hangman","View / Edit level"]
[null,"Level5","Snail","View / Edit level"]
[null,"Level6","House","View / Edit level"]
[null,"Level7","Sail boat","View / Edit level"]
[null,"Level8","Car","View / Edit level"]
[null,"Level9","Happy chap","View / Edit level"]
[null,"Level10","Butterfly","View / Edit level"]
[null,"Level11","Castle","View / Edit level"]
[null,"Level12","Squirrel","View / Edit level"]
[null,"Level13","Spider","View / Edit level"]
[null,"Level14","Camel","View / Edit level"]
[null,"Level15","Crab","View / Edit level"]
[null,"Level16","Couple","View / Edit level"]
[null,"Level17","Fish","View / Edit level"]
[null,"Level19","Rocking Horse","View / Edit level"]
[null,"Level18","Train","View / Edit level"]
[null,"Level20","Octopus","View / Edit level"]
[null,"Level21","Face ball","View / Edit level"]
[null,"Level22","Cup of tea","View / Edit level"]
[null,"Level23","Footballer","View / Edit level"]
[null,"Level24","Owl","View / Edit level"]
[null,"Level25","Abstract","View / Edit level"]
[null,"Level26","Space Invader","View / Edit level"]
[null,"Level27","yin-yang","View / Edit level"]
[null,"Level28","Notes","View / Edit level"]
[null,"Level29","World","View / Edit level"]
[null,"Level30","Camel","View / Edit level"]
[null,"Level31","Heisenberg","View / Edit level"]
[null,"Level32","Pattern","View / Edit level"]
[null,"Level33","Numbers","View / Edit level"]
[null,"Level34","Vampire","View / Edit level"]
[null,"Level35","Witch","View / Edit level"]

{"sheet":"Help","index":2,"n_rows":79,"n_cols":16,"rows_kept":79,"cut":false,"hidden":false,"merged":[]}
[]
[]
[null,"Basic Overview"]
[null,"The numbers tell the player how many consecutive square need to be coloured in each column and row."]
[null,"Players must use the numbers as a guide for what squares are shaded, and of equal importance, what squares"]
[null,"must remain blank. The end result is a completed picture. When playing the game, you will be informed when"]
[null,"you have correctly reached a solution."]
[]
[]
[null,"In this example, the top row has a block of 3 and a block of 1…"]
[]
[null,null,null,null,null,null,3,1]
[]
[]
[]
[]
[null,1,1,1,null,1]
[]
[null,"As there has to be a gap between each block, there is only one way the squares can be shaded…"]
[]
[null,null,null,null,null,null,3,1]
[]
[]
[]
[]
[null,1,1,1,null,1]
[]
[null,"If a square is definitely not shaded, you can mark it with an 'X'…"]
[]
[null,null,null,null,null,null,3,1]
[]
[]
[]
[]
[null,1,1,1,null,1]
[]
[null,"In fact, there can be no other square on the remaining rows, so you can also mark them all as blank…"]
[]
[null,null,null,null,null,null,3,1]
[]
[]
[]
[]
[null,1,1,1,null,1]
[]
[null,"Tactics"]
[null,"It is common to be uncertain of the exact position of a complete block, but you can logically conclude that"]
[null,"some of the square must be shaded. In this example, a block of 4 can only fit in two possible positions, each of which"]
[null,"require the middle 3 squares to be shaded…"]
[]
[null,null,null,null,null,null,4]
[]
[null,null,null,null,null,null,1]
[]
[]
[null,1,1,1,1,1]
[]
[null,"The above example is an impossible game, as there are 2 possible solutions…"]
[]
[]
[null,null,null,null,null,null,null,null,null,null,null,null,null,null,null,"Each game must be designed with a single"]
[null,null,null,null,null,null,null,"and",null,null,null,null,null,null,null,"logically derived solution."]
[]
[]
[]
[]
[null,"In the following example, there is a block of 2 in the top row, and we already know where one of the square is."]
[null,"We can safely say that it has to be connected to the highlighted square, so anything 2 or more blocks away can be marked as blank."]
[]
[null,null,null,null,null,null,2,null,null,null,null,null,null,null,null,2]
[null,null,null,null,null,null,1,null,null,null,null,null,null,null,null,1]
[null,null,null,null,null,null,1,null,"   Becomes",null,null,null,null,null,null,1]
[null,null,null,null,null,null,1,null,null,null,null,null,null,null,null,1]
[null,null,null,null,null,null,1,null,null,null,null,null,null,null,null,1]
[null,null,1,5,null,null,null,null,null,null,null,1,5]
[]
[null,"Conclusion"]
[null,"There are numerous tricks and techniques that can be used to solve a puzzle, but it would spoil the fun"]
[null,"to tell you too much, so start playing!"]

{"sheet":"Level1","index":3,"n_rows":26,"n_cols":21,"rows_kept":26,"cut":false,"hidden":false,"merged":[[0,0,0,5]]}
["Back to Game Selection"]
[]
[null,"Nonogram Level Designer",null,null,null,null,null,null,null,null,null,null,null,null,null,null,null,null,null,null,false]
[]
[]
[null,null,null,"Title","Penguin"]
[]
[]
[null,null,null,null,null,null,null,null,null,null,null,null,null,null,null,null,3]
[null,null,null,null,null,null,null,null,null,null,null,null,null,null,null,null,4]
[null,null,null,null,null,null,null,null,null,null,null,null,null,null,null,null,2,3]
[null,null,null,null,null,null,null,null,null,null,null,null,null,null,null,null,4]
[null,null,null,null,null,null,null,null,null,null,null,null,null,null,null,null,4]
[null,null,null,null,null,null,null,null,null,null,null,null,null,null,null,null,6]
[null,null,null,null,null,null,null,null,null,null,null,null,null,null,null,null,6]
[null,null,null,null,null,null,null,null,null,null,null,null,null,null,null,null,3,3]
[null,null,null,null,null,null,null,null,null,null,null,null,null,null,null,null,2,2]
[null,null,null,null,null,null,null,null,null,null,null,null,null,null,null,null,2,2]
[null,null,null,null,null,null,null,null,null,null,null,null,null,null,null,null,1,1,1,1]
[null,null,null,null,null,null,null,null,null,null,null,null,null,null,null,null,1,1]
[null,null,null,null,null,null,null,null,null,null,null,null,null,null,null,null,1,1]
[null,null,null,null,null,null,null,null,null,null,null,null,null,null,null,null,4]
[null,null,null,null,null,null,null,null,null,null,null,null,null,null,null,null,2,2]
[null,null,null,null,1,3,8,7,7,2,8,1,1,1]
[null,null,null,null,null,null,1,2,1,4,2,8,3]
[null,null,null,null,null,null,null,null,null,1,null,1]

{"sheet":"Level2","index":4,"n_rows":26,"n_cols":21,"rows_kept":26,"cut":false,"hidden":false,"merged":[[0,0,0,5]]}
["Back to Game Selection"]
[]
[null,"Nonogram Level Designer",null,null,null,null,null,null,null,null,null,null,null,null,null,null,null,null,null,null,false]
[]
[]
[null,null,null,"Title","Star"]
[]
[]
[null,null,null,null,null,null,null,null,null,null,null,null,null,null,null,null,1]
[null,null,null,null,null,null,null,null,null,null,null,null,null,null,null,null,3]
[null,null,null,null,null,null,null,null,null,null,null,null,null,null,null,null,5]
[null,null,null,null,null,null,null,null,null,null,null,null,null,null,null,null,7]
[null,null,null,null,null,null,null,null,null,null,null,null,null,null,null,null,6,1,6]
[null,null,null,null,null,null,null,null,null,null,null,null,null,null,null,null,14]
[null,null,null,null,null,null,null,null,null,null,null,null,null,null,null,null,3,5,2]
[null,null,null,null,null,null,null,null,null,null,null,null,null,null,null,null,3,3,2]
[null,null,null,null,null,null,null,null,null,null,null,null,null,null,null,null,3,2]
[null,null,null,null,null,null,null,null,null,null,null,null,null,null,null,null,6]
[null,null,null,null,null,null,null,null,null,null,null,null,null,null,null,null,7]
[null,null,null,null,null,null,null,null,null,null,null,null,null,null,null,null,9]
[null,null,null,null,null,null,null,null,null,null,null,null,null,null,null,null,4,4]
[null,null,null,null,null,null,null,null,null,null,null,null,null,null,null,null,3,3]
[null,null,null,null,null,null,null,null,null,null,null,null,null,null,null,null,2,2]
[null,2,3,4,5,3,5,3,8,3,5,3,4,3,2,1]
[null,1,2,2,3,6,5,3,3,3,5,2,3,2,2,1]
[null,null,null,null,null,null,null,3,null,3,null,3]

{"sheet":"Level3","index":5,"n_rows":25,"n_cols":21,"rows_kept":25,"cut":false,"hidden":false,"merged":[[0,0,0,5]]}
["Back to Game Selection"]
[]
[null,"Nonogram Level Designer",null,null,null,null,null,null,null,null,null,null,null,null,null,null,null,null,null,null,false]
[]
[]
[null,null,null,"Title","Elephant"]
[]
[]
[null,null,null,null,null,null,null,null,null,null,null,null,null,null,null,null,3]
[null,null,null,null,null,null,null,null,null,null,null,null,null,null,null,null,5]
[null,null,null,null,null,null,null,null,null,null,null,null,null,null,null,null,6]
[null,null,null,null,null,null,null,null,null,null,null,null,null,null,null,null,6,2]
[null,null,null,null,null,null,null,null,null,null,null,null,null,null,null,null,3,1,1]
[null,null,null,null,null,null,null,null,null,null,null,null,null,null,null,null,11,1]
[null,null,null,null,null,null,null,null,null,null,null,null,null,null,null,null,15]
[null,null,null,null,null,null,null,null,null,null,null,null,null,null,null,null,14]
[null,null,null,null,null,null,null,null,null,null,null,null,null,null,null,null,10,1]
[null,null,null,null,null,null,null,null,null,null,null,null,null,null,null,null,9,1]
[null,null,null,null,null,null,null,null,null,null,null,null,null,null,null,null,9]
[null,null,null,null,null,null,null,null,null,null,null,null,null,null,null,null,3,2]
[null,null,null,null,null,null,null,null,null,null,null,null,null,null,null,null,3,2]
[null,null,null,null,null,null,null,null,null,null,null,null,null,null,null,null,3,2]
[null,null,null,null,null,null,null,null,null,null,null,null,null,null,null,null,2,2]
[null,3,10,10,9,6,3,11,11,15,3,6,4,2,1,4]
[null,null,null,null,null,null,6,null,null,null,10,null,null,1,2]

{"sheet":"Level4","index":6,"n_rows":28,"n_cols":21,"rows_kept":28,"cut":false,"hidden":false,"merged":[[0,0,0,5]]}
["Back to Game Selection"]
[]
[null,"Nonogram Level Designer",null,null,null,null,null,null,null,null,null,null,null,null,null,null,null,null,null,null,false]
[]
[]
[null,null,null,"Title","Hangman"]
[]
[]
[null,null,null,null,null,null,null,null,null,null,null,null,null,null,null,null,8]
[null,null,null,null,null,null,null,null,null,null,null,null,null,null,null,null,1,1]
[null,null,null,null,null,null,null,null,null,null,null,null,null,null,null,null,1,1]
[null,null,null,null,null,null,null,null,null,null,null,null,null,null,null,null,1,3]
[null,null,null,null,null,null,null,null,null,null,null,null,null,null,null,null,1,3]
[null,null,null,null,null,null,null,null,null,null,null,null,null,null,null,null,1,1]
[null,null,null,null,null,null,null,null,null,null,null,null,null,null,null,null,1,5]
[null,null,null,null,null,null,null,null,null,null,null,null,null,null,null,null,1,1,1,1]
[null,null,null,null,null,null,null,null,null,null,null,null,null,null,null,null,1,1,1,1]
[null,null,null,null,null,null,null,null,null,null,null,null,null,null,null,null,1,1]
[null,null,null,null,null,null,null,null,null,null,null,null,null,null,null,null,1,1,1]
[null,null,null,null,null,null,null,null,null,null,null,null,null,null,null,null,1,1,1]
[null,null,null,null,null,null,null,null,null,null,null,null,null,null,null,null,1,2,2]
[null,null,null,null,null,null,null,null,null,null,null,null,null,null,null,null,1]
[null,null,null,null,null,null,null,null,null,null,null,null,null,null,null,null,15]
[null,15,1,1,1,1,1,1,10,2,3,1,1,1,1,1]
[null,null,1,1,1,1,3,2,1,1,1]
[null,null,null,null,null,null,1,1,null,3,1]
[null,null,null,null,null,null,1,3,null,1]
[null,null,null,null,null,null,null,1]

{"sheet":"Level5","index":7,"n_rows":27,"n_cols":21,"rows_kept":27,"cut":false,"hidden":false,"merged":[[0,0,0,5]]}
["Back to Game Selection"]
[]
[null,"Nonogram Level Designer",null,null,null,null,null,null,null,null,null,null,null,null,null,null,null,null,null,null,false]
[]
[]
[null,null,null,"Title","Snail"]
[]
[]
[]
[]
[]
[]
[]
[null,null,null,null,null,null,null,null,null,null,null,null,null,null,null,null,1,1]
[null,null,null,null,null,null,null,null,null,null,null,null,null,null,null,null,5,1,1]
[null,null,null,null,null,null,null,null,null,null,null,null,null,null,null,null,2,2,3]
[null,null,null,null,null,null,null,null,null,null,null,null,null,null,null,null,2,1,2]
[null,null,null,null,null,null,null,null,null,null,null,null,null,null,null,null,2,3,1,2]
[null,null,null,null,null,null,null,null,null,null,null,null,null,null,null,null,2,1,1,1,2]
[null,null,null,null,null,null,null,null,null,null,null,null,null,null,null,null,2,1,1,1,2]
[null,null,null,null,null,null,null,null,null,null,null,null,null,null,null,null,2,1,3]
[null,null,null,null,null,null,null,null,null,null,null,null,null,null,null,null,1,10]
[null,null,null,null,null,null,null,null,null,null,null,null,null,null,null,null,9]
[null,1,4,8,2,1,1,1,2,2,3,2,3,8,4,3]
[null,null,1,null,3,2,1,1,5,2,2]
[null,null,null,null,null,2,1,2]
[null,null,null,null,null,null,2]

{"sheet":"Level6","index":8,"n_rows":27,"n_cols":21,"rows_kept":27,"cut":false,"hidden":false,"merged":[[0,0,0,5]]}
["Back to Game Selection"]
[]
[null,"Nonogram Level Designer",null,null,null,null,null,null,null,null,null,null,null,null,null,null,null,null,null,null,false]
[]
[]
[null,null,null,"Title","House"]
[]
[]
[null,null,null,null,null,null,null,null,null,null,null,null,null,null,null,null,2]
[null,null,null,null,null,null,null,null,null,null,null,null,null,null,null,null,9]
[null,null,null,null,null,null,null,null,null,null,null,null,null,null,null,null,2,2]
[null,null,null,null,null,null,null,null,null,null,null,null,null,null,null,null,1,1]
[null,null,null,null,null,null,null,null,null,null,null,null,null,null,null,null,1,1]
[null,null,null,null,null,null,null,null,null,null,null,null,null,null,null,null,15]
[null,null,null,null,null,null,null,null,null,null,null,null,null,null,null,null,1,1]
[null,null,null,null,null,null,null,null,null,null,null,null,null,null,null,null,1,4,3,1]
[null,null,null,null,null,null,null,null,null,null,null,null,null,null,null,null,1,4,3,1]
[null,null,null,null,null,null,null,null,null,null,null,null,null,null,null,null,1,1]
[null,null,null,null,null,null,null,null,null,null,null,null,null,null,null,null,1,1]
[null,null,null,null,null,null,null,null,null,null,null,null,null,null,null,null,1,2,2,2,1]
[null,null,null,null,null,null,null,null,null,null,null,null,null,null,null,null,1,2,2,2,1]
[null,null,null,null,null,null,null,null,null,null,null,null,null,null,null,null,1,2,1]
[null,null,null,null,null,null,null,null,null,null,null,null,null,null,null,null,1,2,1]
[null,10,2,2,1,1,1,1,1,1,1,1,3,4,2,10]
[null,null,null,1,1,1,1,1,1,1,1,1,1,1]
[null,null,null,2,2,2,2,2,2,null,2,2,2]
[null,null,null,2,2,null,null,null,null,null,null,4,4]

{"sheet":"Level7","index":9,"n_rows":25,"n_cols":21,"rows_kept":25,"cut":false,"hidden":false,"merged":[[0,0,0,5]]}
["Back to Game Selection"]
[]
[null,"Nonogram Level Designer",null,null,null,null,null,null,null,null,null,null,null,null,null,null,null,null,null,null,false]
[]
[]
[null,null,null,"Title","Sail boat"]
[]
[]
[null,null,null,null,null,null,null,null,null,null,null,null,null,null,null,null,1]
[null,null,null,null,null,null,null,null,null,null,null,null,null,null,null,null,1]
[null,null,null,null,null,null,null,null,null,null,null,null,null,null,null,null,1,2]
[null,null,null,null,null,null,null,null,null,null,null,null,null,null,null,null,1,2]
[null,null,null,null,null,null,null,null,null,null,null,null,null,null,null,null,2,3]
[null,null,null,null,null,null,null,null,null,null,null,null,null,null,null,null,2,4]
[null,null,null,null,null,null,null,null,null,null,null,null,null,null,null,null,3,5]
[null,null,null,null,null,null,null,null,null,null,null,null,null,null,null,null,3,6]
[null,null,null,null,null,null,null,null,null,null,null,null,null,null,null,null,4,6]
[null,null,null,null,null,null,null,null,null,null,null,null,null,null,null,null,4,7]
[null,null,null,null,null,null,null,null,null,null,null,null,null,null,null,null,5,8]
[null,null,null,null,null,null,null,null,null,null,null,null,null,null,null,null,1]
[null,null,null,null,null,null,null,null,null,null,null,null,null,null,null,null,15]
[null,null,null,null,null,null,null,null,null,null,null,null,null,null,null,null,13]
[null,null,null,null,null,null,null,null,null,null,null,null,null,null,null,null,11]
[null,1,1,3,5,7,9,3,15,9,7,6,5,4,2,1]
[null,null,2,3,3,3,3,null,null,3,3,3,3,3,2,1]

{"sheet":"Level8","index":10,"n_rows":27,"n_cols":21,"rows_kept":27,"cut":false,"hidden":false,"merged":[[0,0,0,5]]}
["Back to Game Selection"]
[]
[null,"Nonogram Level Designer",null,null,null,null,null,null,null,null,null,null,null,null,null,null,null,null,null,null,false]
[]
[]
[null,null,null,"Title","Car"]
[]
[]
[]
[]
[]
[null,null,null,null,null,null,null,null,null,null,null,null,null,null,null,null,5]
[null,null,null,null,null,null,null,null,null,null,null,null,null,null,null,null,2,1]
[null,null,null,null,null,null,null,null,null,null,null,null,null,null,null,null,2,1]
[null,null,null,null,null,null,null,null,null,null,null,null,null,null,null,null,14]
[null,null,null,null,null,null,null,null,null,null,null,null,null,null,null,null,2,2]
[null,null,null,null,null,null,null,null,null,null,null,null,null,null,null,null,1,1]
[null,null,null,null,null,null,null,null,null,null,null,null,null,null,null,null,1,2,2,1]
[null,null,null,null,null,null,null,null,null,null,null,null,null,null,null,null,13]
[null,null,null,null,null,null,null,null,null,null,null,null,null,null,null,null,4,4]
[null,null,null,null,null,null,null,null,null,null,null,null,null,null,null,null,2,2]
[null,null,null,null,null,null,null,null,null,null,null,null,null,null,null,null,15]
[null,null,null,null,null,null,null,null,null,null,null,null,null,null,null,null,15]
[null,4,2,1,1,1,4,4,1,1,1,1,2,1,2,3]
[null,2,2,6,6,2,1,1,1,1,1,1,6,6,2,2]
[null,null,2,null,null,2,2,2,1,1,1,2,null,null,2]
[null,null,null,null,null,null,null,null,2,2,2,2]

{"sheet":"Level9","index":11,"n_rows":28,"n_cols":21,"rows_kept":28,"cut":false,"hidden":false,"merged":[[0,0,0,5]]}
["Back to Game Selection"]
[]
[null,"Nonogram Level Designer",null,null,null,null,null,null,null,null,null,null,null,null,null,null,null,null,null,null,false]
[]
[]
[null,null,null,"Title","Happy chap"]
[]
[]
[null,null,null,null,null,null,null,null,null,null,null,null,null,null,null,null,8]
[null,null,null,null,null,null,null,null,null,null,null,null,null,null,null,null,11]
[null,null,null,null,null,null,null,null,null,null,null,null,null,null,null,null,3,1,3]
[null,null,null,null,null,null,null,null,null,null,null,null,null,null,null,null,4,1,1,1,4]
[null,null,null,null,null,null,null,null,null,null,null,null,null,null,null,null,4,1,4]
[null,null,null,null,null,null,null,null,null,null,null,null,null,null,null,null,15]
[null,null,null,null,null,null,null,null,null,null,null,null,null,null,null,null,2,5,6]
[null,null,null,null,null,null,null,null,null,null,null,null,null,null,null,null,2,3,6]
[null,null,null,null,null,null,null,null,null,null,null,null,null,null,null,null,3,5,3]
[null,null,null,null,null,null,null,null,null,null,null,null,null,null,null,null,3,3]
[null,null,null,null,null,null,null,null,null,null,null,null,null,null,null,null,11]
[null,null,null,null,null,null,null,null,null,null,null,null,null,null,null,null,9]
[null,null,null,null,null,null,null,null,null,null,null,null,null,null,null,null,3]
[null,null,null,null,null,null,null,null,null,null,null,null,null,null,null,null,10]
[null,null,null,null,null,null,null,null,null,null,null,null,null,null,null,null,12]
[null,6,8,5,7,2,2,2,7,2,2,2,7,10,8,6]
[null,null,1,3,3,3,1,4,1,1,1,3,3,1]
[null,null,null,2,2,2,4,5,5,1,4,2,2]
[null,null,null,null,null,2,2,null,null,5,2,2]
[null,null,null,null,null,null,2,null,null,null,2]

{"sheet":"Level10","index":12,"n_rows":27,"n_cols":23,"rows_kept":27,"cut":false,"hidden":false,"merged":[[0,0,0,5]]}
["Back to Game Selection"]
[]
[null,"Nonogram Level Designer",null,null,null,null,null,null,null,null,null,null,null,null,null,null,null,null,null,null,false]
[]
[]
[null,null,null,"Title","Butterfly"]
[]
[]
[null,null,null,null,null,null,null,null,null,null,null,null,null,null,null,null,2,2]
[null,null,null,null,null,null,null,null,null,null,null,null,null,null,null,null,1,2,1,1,2,1]
[null,null,null,null,null,null,null,null,null,null,null,null,null,null,null,null,2,1,1,1,2]
[null,null,null,null,null,null,null,null,null,null,null,null,null,null,null,null,4,1,1,1,4]
[null,null,null,null,null,null,null,null,null,null,null,null,null,null,null,null,1,2,1,1,1,2,1]
[null,null,null,null,null,null,null,null,null,null,null,null,null,null,null,null,1,3,3,3,1]
[null,null,null,null,null,null,null,null,null,null,null,null,null,null,null,null,1,1,1]
[null,null,null,null,null,null,null,null,null,null,null,null,null,null,null,null,1,2,1,2,1]
[null,null,null,null,null,null,null,null,null,null,null,null,null,null,null,null,1,4,1,4,1]
[null,null,null,null,null,null,null,null,null,null,null,null,null,null,null,null,1,3,1,3,1]
[null,null,null,null,null,null,null,null,null,null,null,null,null,null,null,null,1,2,3,2,1]
[null,null,null,null,null,null,null,null,null,null,null,null,null,null,null,null,3,1,1,1,3]
[null,null,null,null,null,null,null,null,null,null,null,null,null,null,null,null,2,1,1,2]
[null,null,null,null,null,null,null,null,null,null,null,null,null,null,null,null,4,4]
[null,null,null,null,null,null,null,null,null,null,null,null,null,null,null,null,2,2]
[null,5,3,1,2,2,2,1,10,1,2,2,2,1,3,5]
[null,5,1,3,3,1,2,1,null,1,2,1,3,3,1,5]
[null,null,3,4,3,3,2,1,null,1,2,3,3,4,3]
[null,null,null,2,2,1,null,null,null,null,null,1,2,2]

{"sheet":"Level11","index":13,"n_rows":26,"n_cols":21,"rows_kept":26,"cut":false,"hidden":false,"merged":[[0,0,0,5]]}
["Back to Game Selection"]
[]
[null,"Nonogram Level Designer",null,null,null,null,null,null,null,null,null,null,null,null,null,null,null,null,null,null,false]
[]
[]
[null,null,null,"Title","Castle"]
[]
[]
[null,null,null,null,null,null,null,null,null,null,null,null,null,null,null,null,1,1]
[null,null,null,null,null,null,null,null,null,null,null,null,null,null,null,null,3,3]
[null,null,null,null,null,null,null,null,null,null,null,null,null,null,null,null,5,5]
[null,null,null,null,null,null,null,null,null,null,null,null,null,null,null,null,1,1,3]
[null,null,null,null,null,null,null,null,null,null,null,null,null,null,null,null,1,1,1,1]
[null,null,null,null,null,null,null,null,null,null,null,null,null,null,null,null,3,1,1]
[null,null,null,null,null,null,null,null,null,null,null,null,null,null,null,null,3,3]
[null,null,null,null,null,null,null,null,null,null,null,null,null,null,null,null,3,1,1,1,3]
[null,null,null,null,null,null,null,null,null,null,null,null,null,null,null,null,15]
[null,null,null,null,null,null,null,null,null,null,null,null,null,null,null,null,1,2,6,1,1]
[null,null,null,null,null,null,null,null,null,null,null,null,null,null,null,null,1,2,6,1,1]
[null,null,null,null,null,null,null,null,null,null,null,null,null,null,null,null,7,6]
[null,null,null,null,null,null,null,null,null,null,null,null,null,null,null,null,6,2,5]
[null,null,null,null,null,null,null,null,null,null,null,null,null,null,null,null,6,2,5]
[null,null,null,null,null,null,null,null,null,null,null,null,null,null,null,null,6,2,5]
[null,1,8,3,14,1,8,4,4,3,5,1,8,4,8,1]
[null,7,4,10,null,1,null,null,3,3,null,7,4,9,4,7]
[null,null,null,null,null,4]

{"sheet":"Level12","index":14,"n_rows":26,"n_cols":21,"rows_kept":26,"cut":false,"hidden":false,"merged":[[0,0,0,5]]}
["Back to Game Selection"]
[]
[null,"Nonogram Level Designer",null,null,null,null,null,null,null,null,null,null,null,null,null,null,null,null,null,null,false]
[]
[]
[null,null,null,"Title","Squirrel"]
[]
[]
[null,null,null,null,null,null,null,null,null,null,null,null,null,null,null,null,3,2]
[null,null,null,null,null,null,null,null,null,null,null,null,null,null,null,null,5,4]
[null,null,null,null,null,null,null,null,null,null,null,null,null,null,null,null,5,3,2]
[null,null,null,null,null,null,null,null,null,null,null,null,null,null,null,null,5,6]
[null,null,null,null,null,null,null,null,null,null,null,null,null,null,null,null,1,3,5]
[null,null,null,null,null,null,null,null,null,null,null,null,null,null,null,null,1,3,4]
[null,null,null,null,null,null,null,null,null,null,null,null,null,null,null,null,3,4]
[null,null,null,null,null,null,null,null,null,null,null,null,null,null,null,null,4,6]
[null,null,null,null,null,null,null,null,null,null,null,null,null,null,null,null,12]
[null,null,null,null,null,null,null,null,null,null,null,null,null,null,null,null,9,1]
[null,null,null,null,null,null,null,null,null,null,null,null,null,null,null,null,8]
[null,null,null,null,null,null,null,null,null,null,null,null,null,null,null,null,6]
[null,null,null,null,null,null,null,null,null,null,null,null,null,null,null,null,6]
[null,null,null,null,null,null,null,null,null,null,null,null,null,null,null,null,3]
[null,null,null,null,null,null,null,null,null,null,null,null,null,null,null,null,4]
[null,5,4,5,13,13,10,7,6,8,9,10,9,1,4,2]
[null,null,null,4,null,null,null,null,1,1,null,null,null,2,2]
[null,null,null,null,null,null,null,null,null,null,null,null,null,2]

{"sheet":"Level13","index":15,"n_rows":27,"n_cols":21,"rows_kept":27,"cut":false,"hidden":false,"merged":[[0,0,0,5]]}
["Back to Game Selection"]
[]
[null,"Nonogram Level Designer",null,null,null,null,null,null,null,null,null,null,null,null,null,null,null,null,null,null,false]
[]
[]
[null,null,null,"Title","Spider"]
[]
[]
[null,null,null,null,null,null,null,null,null,null,null,null,null,null,null,null,1]
[null,null,null,null,null,null,null,null,null,null,null,null,null,null,null,null,1]
[null,null,null,null,null,null,null,null,null,null,null,null,null,null,null,null,3,1,3]
[null,null,null,null,null,null,null,null,null,null,null,null,null,null,null,null,1,2,1,2,1]
[null,null,null,null,null,null,null,null,null,null,null,null,null,null,null,null,2,1,2]
[null,null,null,null,null,null,null,null,null,null,null,null,null,null,null,null,7]
[null,null,null,null,null,null,null,null,null,null,null,null,null,null,null,null,5,2,6]
[null,null,null,null,null,null,null,null,null,null,null,null,null,null,null,null,1,9,1]
[null,null,null,null,null,null,null,null,null,null,null,null,null,null,null,null,2,3,2]
[null,null,null,null,null,null,null,null,null,null,null,null,null,null,null,null,6,6]
[null,null,null,null,null,null,null,null,null,null,null,null,null,null,null,null,1,10,1]
[null,null,null,null,null,null,null,null,null,null,null,null,null,null,null,null,2,6,2]
[null,null,null,null,null,null,null,null,null,null,null,null,null,null,null,null,1,1]
[null,null,null,null,null,null,null,null,null,null,null,null,null,null,null,null,2,2]
[null,null,null,null,null,null,null,null,null,null,null,null,null,null,null,null,1,1]
[null,2,1,2,2,7,1,4,9,1,3,8,2,2,1,2]
[null,2,1,1,6,null,1,2,2,2,3,null,5,1,1,2]
[null,2,1,1,null,null,3,null,null,2,null,null,null,3,1,2]
[null,null,2,3,null,null,null,null,null,null,null,null,null,null,3,2]

{"sheet":"Level14","index":16,"n_rows":25,"n_cols":21,"rows_kept":25,"cut":false,"hidden":false,"merged":[[0,0,0,5]]}
["Back to Game Selection"]
[]
[null,"Nonogram Level Designer",null,null,null,null,null,null,null,null,null,null,null,null,null,null,null,null,null,null,false]
[]
[]
[null,null,null,"Title","Camel"]
[]
[]
[null,null,null,null,null,null,null,null,null,null,null,null,null,null,null,null,1]
[null,null,null,null,null,null,null,null,null,null,null,null,null,null,null,null,3]
[null,null,null,null,null,null,null,null,null,null,null,null,null,null,null,null,3]
[null,null,null,null,null,null,null,null,null,null,null,null,null,null,null,null,2]
[null,null,null,null,null,null,null,null,null,null,null,null,null,null,null,null,2,2,2]
[null,null,null,null,null,null,null,null,null,null,null,null,null,null,null,null,3,2,2]
[null,null,null,null,null,null,null,null,null,null,null,null,null,null,null,null,11]
[null,null,null,null,null,null,null,null,null,null,null,null,null,null,null,null,1,10]
[null,null,null,null,null,null,null,null,null,null,null,null,null,null,null,null,9]
[null,null,null,null,null,null,null,null,null,null,null,null,null,null,null,null,9]
[null,null,null,null,null,null,null,null,null,null,null,null,null,null,null,null,1,1,2]
[null,null,null,null,null,null,null,null,null,null,null,null,null,null,null,null,1,1,2]
[null,null,null,null,null,null,null,null,null,null,null,null,null,null,null,null,1,2,3]
[null,null,null,null,null,null,null,null,null,null,null,null,null,null,null,null,1,1]
[null,null,null,null,null,null,null,null,null,null,null,null,null,null,null,null,2,2]
[null,null,1,1,9,5,9,6,4,6,6,9,13,7,2]
[null,null,null,null,null,1,null,1,null,null,null,null,1,1]

{"sheet":"Level15","index":17,"n_rows":28,"n_cols":21,"rows_kept":28,"cut":false,"hidden":false,"merged":[[0,0,0,5]]}
["Back to Game Selection"]
[]
[null,"Nonogram Level Designer",null,null,null,null,null,null,null,null,null,null,null,null,null,null,null,null,null,null,false]
[]
[]
[null,null,null,"Title","Crab"]
[]
[]
[null,null,null,null,null,null,null,null,null,null,null,null,null,null,null,null,1,2]
[null,null,null,null,null,null,null,null,null,null,null,null,null,null,null,null,2,1,2]
[null,null,null,null,null,null,null,null,null,null,null,null,null,null,null,null,2,1,1,2]
[null,null,null,null,null,null,null,null,null,null,null,null,null,null,null,null,3,3]
[null,null,null,null,null,null,null,null,null,null,null,null,null,null,null,null,2,1,1,1]
[null,null,null,null,null,null,null,null,null,null,null,null,null,null,null,null,2,1,1,3]
[null,null,null,null,null,null,null,null,null,null,null,null,null,null,null,null,10]
[null,null,null,null,null,null,null,null,null,null,null,null,null,null,null,null,1,2,3,2,1]
[null,null,null,null,null,null,null,null,null,null,null,null,null,null,null,null,6,5]
[null,null,null,null,null,null,null,null,null,null,null,null,null,null,null,null,11]
[null,null,null,null,null,null,null,null,null,null,null,null,null,null,null,null,15]
[null,null,null,null,null,null,null,null,null,null,null,null,null,null,null,null,11]
[null,null,null,null,null,null,null,null,null,null,null,null,null,null,null,null,3,1,1,3]
[null,null,null,null,null,null,null,null,null,null,null,null,null,null,null,null,1,1,1,1]
[null,null,null,null,null,null,null,null,null,null,null,null,null,null,null,null,3,3]
[null,4,6,1,2,9,1,4,2,4,1,9,1,1,6,3]
[null,2,1,2,6,null,4,3,3,3,4,null,7,1,1,1]
[null,1,1,5,1,null,null,null,null,null,null,null,1,1,1,1]
[null,2,1,1,null,null,null,null,null,null,null,null,null,5,1,2]
[null,null,null,null,null,null,null,null,null,null,null,null,null,1]

{"sheet":"Level16","index":18,"n_rows":26,"n_cols":22,"rows_kept":26,"cut":false,"hidden":false,"merged":[[0,0,0,5]]}
["Back to Game Selection"]
[]
[null,"Nonogram Level Designer",null,null,null,null,null,null,null,null,null,null,null,null,null,null,null,null,null,null,false]
[]
[]
[null,null,null,"Title","Couple"]
[]
[]
[null,null,null,null,null,null,null,null,null,null,null,null,null,null,null,null,3,3]
[null,null,null,null,null,null,null,null,null,null,null,null,null,null,null,null,3,3]
[null,null,null,null,null,null,null,null,null,null,null,null,null,null,null,null,3,3]
[null,null,null,null,null,null,null,null,null,null,null,null,null,null,null,null,1,1]
[null,null,null,null,null,null,null,null,null,null,null,null,null,null,null,null,5,3]
[null,null,null,null,null,null,null,null,null,null,null,null,null,null,null,null,7,7]
[null,null,null,null,null,null,null,null,null,null,null,null,null,null,null,null,1,3,1,1,3,1]
[null,null,null,null,null,null,null,null,null,null,null,null,null,null,null,null,1,3,1,1,3,1]
[null,null,null,null,null,null,null,null,null,null,null,null,null,null,null,null,1,3,3,3,1]
[null,null,null,null,null,null,null,null,null,null,null,null,null,null,null,null,3,3]
[null,null,null,null,null,null,null,null,null,null,null,null,null,null,null,null,1,1,5]
[null,null,null,null,null,null,null,null,null,null,null,null,null,null,null,null,1,1,5]
[null,null,null,null,null,null,null,null,null,null,null,null,null,null,null,null,1,1,7]
[null,null,null,null,null,null,null,null,null,null,null,null,null,null,null,null,1,1,1,1]
[null,null,null,null,null,null,null,null,null,null,null,null,null,null,null,null,2,2,2,2]
[null,4,2,3,10,3,2,4,1,4,1,3,13,3,1,4]
[null,null,1,11,null,11,1,null,null,1,3,11,null,11,3,1]
[null,null,null,null,null,null,null,null,null,null,1,null,null,null,1]

{"sheet":"Level17","index":19,"n_rows":25,"n_cols":21,"rows_kept":25,"cut":false,"hidden":false,"merged":[[0,0,0,5]]}
["Back to Game Selection"]
[]
[null,"Nonogram Level Designer",null,null,null,null,null,null,null,null,null,null,null,null,null,null,null,null,null,null,false]
[]
[]
[null,null,null,"Title","Fish"]
[]
[]
[null,null,null,null,null,null,null,null,null,null,null,null,null,null,null,null,1,1]
[null,null,null,null,null,null,null,null,null,null,null,null,null,null,null,null,1,2]
[null,null,null,null,null,null,null,null,null,null,null,null,null,null,null,null,2,4]
[null,null,null,null,null,null,null,null,null,null,null,null,null,null,null,null,2,4]
[null,null,null,null,null,null,null,null,null,null,null,null,null,null,null,null,2,4]
[null,null,null,null,null,null,null,null,null,null,null,null,null,null,null,null,3,7]
[null,null,null,null,null,null,null,null,null,null,null,null,null,null,null,null,11]
[null,null,null,null,null,null,null,null,null,null,null,null,null,null,null,null,9,2]
[null,null,null,null,null,null,null,null,null,null,null,null,null,null,null,null,13]
[null,null,null,null,null,null,null,null,null,null,null,null,null,null,null,null,2,10]
[null,null,null,null,null,null,null,null,null,null,null,null,null,null,null,null,3,8]
[null,null,null,null,null,null,null,null,null,null,null,null,null,null,null,null,2,2]
[null,null,null,null,null,null,null,null,null,null,null,null,null,null,null,null,2,2]
[null,null,null,null,null,null,null,null,null,null,null,null,null,null,null,null,2,2]
[null,null,null,null,null,null,null,null,null,null,null,null,null,null,null,null,1]
[null,4,4,9,6,3,5,11,10,12,11,6,2,5,4,2]
[null,2,4,null,null,null,null,null,1,null,null,null,3]

{"sheet":"Level19","index":20,"n_rows":26,"n_cols":21,"rows_kept":26,"cut":false,"hidden":false,"merged":[[0,0,0,5]]}
["Back to Game Selection"]
[]
[null,"Nonogram Level Designer",null,null,null,null,null,null,null,null,null,null,null,null,null,null,null,null,null,null,false]
[]
[]
[null,null,null,"Title","Rocking Horse"]
[]
[]
[null,null,null,null,null,null,null,null,null,null,null,null,null,null,null,null,1]
[null,null,null,null,null,null,null,null,null,null,null,null,null,null,null,null,2]
[null,null,null,null,null,null,null,null,null,null,null,null,null,null,null,null,2,1]
[null,null,null,null,null,null,null,null,null,null,null,null,null,null,null,null,6]
[null,null,null,null,null,null,null,null,null,null,null,null,null,null,null,null,7]
[null,null,null,null,null,null,null,null,null,null,null,null,null,null,null,null,5]
[null,null,null,null,null,null,null,null,null,null,null,null,null,null,null,null,3,2,3]
[null,null,null,null,null,null,null,null,null,null,null,null,null,null,null,null,4,2,3]
[null,null,null,null,null,null,null,null,null,null,null,null,null,null,null,null,6,4]
[null,null,null,null,null,null,null,null,null,null,null,null,null,null,null,null,1,8]
[null,null,null,null,null,null,null,null,null,null,null,null,null,null,null,null,2,2]
[null,null,null,null,null,null,null,null,null,null,null,null,null,null,null,null,1,1]
[null,null,null,null,null,null,null,null,null,null,null,null,null,null,null,null,1,1,1,1]
[null,null,null,null,null,null,null,null,null,null,null,null,null,null,null,null,13]
[null,null,null,null,null,null,null,null,null,null,null,null,null,null,null,null,9]
[null,2,2,3,9,5,2,2,2,2,9,15,1,4,2,2]
[null,1,1,1,null,2,2,1,1,2,2,null,6,1,1,1]
[null,null,null,null,null,null,null,2,2,2,null,null,2]

{"sheet":"Level18","index":21,"n_rows":27,"n_cols":21,"rows_kept":27,"cut":false,"hidden":false,"merged":[[0,0,0,5]]}
["Back to Game Selection"]
[]
[null,"Nonogram Level Designer",null,null,null,null,null,null,null,null,null,null,null,null,null,null,null,null,null,null,false]
[]
[]
[null,null,null,"Title","Train"]
[]
[]
[null,null,null,null,null,null,null,null,null,null,null,null,null,null,null,null,3,4]
[null,null,null,null,null,null,null,null,null,null,null,null,null,null,null,null,2]
[]
[null,null,null,null,null,null,null,null,null,null,null,null,null,null,null,null,5,4]
[null,null,null,null,null,null,null,null,null,null,null,null,null,null,null,null,1,1,2]
[null,null,null,null,null,null,null,null,null,null,null,null,null,null,null,null,1,1,2]
[null,null,null,null,null,null,null,null,null,null,null,null,null,null,null,null,1,1,2]
[null,null,null,null,null,null,null,null,null,null,null,null,null,null,null,null,14]
[null,null,null,null,null,null,null,null,null,null,null,null,null,null,null,null,15]
[null,null,null,null,null,null,null,null,null,null,null,null,null,null,null,null,15]
[null,null,null,null,null,null,null,null,null,null,null,null,null,null,null,null,1,12]
[null,null,null,null,null,null,null,null,null,null,null,null,null,null,null,null,2,1,1,6]
[null,null,null,null,null,null,null,null,null,null,null,null,null,null,null,null,4,3,1,1]
[null,null,null,null,null,null,null,null,null,null,null,null,null,null,null,null,4,3,5]
[null,null,null,null,null,null,null,null,null,null,null,null,null,null,null,null,2,1,1,1]
[null,8,1,1,1,1,1,8,1,1,1,2,1,1,5,3]
[null,2,3,3,1,9,4,null,4,5,1,12,9,8,1]
[null,null,4,4,4,null,2,null,2,null,5,null,1]
[null,null,null,null,2,null,null,null,null,null,1]

{"sheet":"Level20","index":22,"n_rows":27,"n_cols":21,"rows_kept":27,"cut":false,"hidden":false,"merged":[[0,0,0,5]]}
["Back to Game Selection"]
[]
[null,"Nonogram Level Designer",null,null,null,null,null,null,null,null,null,null,null,null,null,null,null,null,null,null,false]
[]
[]
[null,null,null,"Title","Octopus"]
[]
[]
[null,null,null,null,null,null,null,null,null,null,null,null,null,null,null,null,4]
[null,null,null,null,null,null,null,null,null,null,null,null,null,null,null,null,6,2]
[null,null,null,null,null,null,null,null,null,null,null,null,null,null,null,null,2,2,1,1,2]
[null,null,null,null,null,null,null,null,null,null,null,null,null,null,null,null,2,2,1,1,1]
[null,null,null,null,null,null,null,null,null,null,null,null,null,null,null,null,1,6,2]
[null,null,null,null,null,null,null,null,null,null,null,null,null,null,null,null,1,8]
[null,null,null,null,null,null,null,null,null,null,null,null,null,null,null,null,8]
[null,null,null,null,null,null,null,null,null,null,null,null,null,null,null,null,10]
[null,null,null,null,null,null,null,null,null,null,null,null,null,null,null,null,10,3]
[null,null,null,null,null,null,null,null,null,null,null,null,null,null,null,null,1,2,1,1]
[null,null,null,null,null,null,null,null,null,null,null,null,null,null,null,null,4,1,3]
[null,null,null,null,null,null,null,null,null,null,null,null,null,null,null,null,3,1,1,4]
[null,null,null,null,null,null,null,null,null,null,null,null,null,null,null,null,1,3]
[null,null,null,null,null,null,null,null,null,null,null,null,null,null,null,null,2,2]
[null,null,null,null,null,null,null,null,null,null,null,null,null,null,null,null,1]
[null,1,2,4,3,10,14,2,13,2,10,1,2,3,2,1]
[null,2,1,1,1,2,null,5,null,5,2,1,1,2,1,1]
[null,1,1,2,null,null,null,null,null,1,null,1,2,1,1,1]
[null,null,null,null,null,null,null,null,null,null,null,1]

{"sheet":"Level21","index":23,"n_rows":26,"n_cols":21,"rows_kept":26,"cut":false,"hidden":false,"merged":[[0,0,0,5]]}
["Back to Game Selection"]
[]
[null,"Nonogram Level Designer",null,null,null,null,null,null,null,null,null,null,null,null,null,null,null,null,null,null,false]
[]
[]
[null,null,null,"Title","Face ball"]
[]
[]
[null,null,null,null,null,null,null,null,null,null,null,null,null,null,null,null,6]
[null,null,null,null,null,null,null,null,null,null,null,null,null,null,null,null,10]
[null,null,null,null,null,null,null,null,null,null,null,null,null,null,null,null,12]
[null,null,null,null,null,null,null,null,null,null,null,null,null,null,null,null,7,2,3]
[null,null,null,null,null,null,null,null,null,null,null,null,null,null,null,null,7,2,3]
[null,null,null,null,null,null,null,null,null,null,null,null,null,null,null,null,15]
[null,null,null,null,null,null,null,null,null,null,null,null,null,null,null,null,4,10]
[null,null,null,null,null,null,null,null,null,null,null,null,null,null,null,null,5,9]
[null,null,null,null,null,null,null,null,null,null,null,null,null,null,null,null,5,6,2]
[null,null,null,null,null,null,null,null,null,null,null,null,null,null,null,null,6,3]
[null,null,null,null,null,null,null,null,null,null,null,null,null,null,null,null,15]
[null,null,null,null,null,null,null,null,null,null,null,null,null,null,null,null,13]
[null,null,null,null,null,null,null,null,null,null,null,null,null,null,null,null,13]
[null,null,null,null,null,null,null,null,null,null,null,null,null,null,null,null,11]
[null,null,null,null,null,null,null,null,null,null,null,null,null,null,null,null,7]
[null,8,11,13,13,6,7,9,3,9,9,2,8,6,10,6]
[null,null,null,null,null,8,6,5,4,5,5,4,4,5]
[null,null,null,null,null,null,null,null,5,null,null,5]

{"sheet":"Level22","index":24,"n_rows":26,"n_cols":21,"rows_kept":26,"cut":false,"hidden":false,"merged":[[0,0,0,5]]}
["Back to Game Selection"]
[]
[null,"Nonogram Level Designer",null,null,null,null,null,null,null,null,null,null,null,null,null,null,null,null,null,null,false]
[]
[]
[null,null,null,"Title","Cup of tea"]
[]
[]
[null,null,null,null,null,null,null,null,null,null,null,null,null,null,null,null,1,1]
[null,null,null,null,null,null,null,null,null,null,null,null,null,null,null,null,2,2]
[null,null,null,null,null,null,null,null,null,null,null,null,null,null,null,null,1,1]
[null,null,null,null,null,null,null,null,null,null,null,null,null,null,null,null,1,1]
[]
[null,null,null,null,null,null,null,null,null,null,null,null,null,null,null,null,12]
[null,null,null,null,null,null,null,null,null,null,null,null,null,null,null,null,2,10]
[null,null,null,null,null,null,null,null,null,null,null,null,null,null,null,null,1,10]
[null,null,null,null,null,null,null,null,null,null,null,null,null,null,null,null,1,10]
[null,null,null,null,null,null,null,null,null,null,null,null,null,null,null,null,2,10]
[null,null,null,null,null,null,null,null,null,null,null,null,null,null,null,null,12]
[null,null,null,null,null,null,null,null,null,null,null,null,null,null,null,null,8]
[null,null,null,null,null,null,null,null,null,null,null,null,null,null,null,null,6]
[null,null,null,null,null,null,null,null,null,null,null,null,null,null,null,null,14]
[null,null,null,null,null,null,null,null,null,null,null,null,null,null,null,null,12]
[null,4,2,1,6,7,10,3,2,10,3,2,7,6,2,1]
[null,null,2,1,2,2,null,10,10,null,10,10,2,2]
[null,null,1,2]

{"sheet":"Level23","index":25,"n_rows":27,"n_cols":21,"rows_kept":27,"cut":false,"hidden":false,"merged":[[0,0,0,5]]}
["Back to Game Selection"]
[]
[null,"Nonogram Level Designer",null,null,null,null,null,null,null,null,null,null,null,null,null,null,null,null,null,null,false]
[]
[]
[null,null,null,"Title","Footballer"]
[]
[]
[null,null,null,null,null,null,null,null,null,null,null,null,null,null,null,null,2]
[null,null,null,null,null,null,null,null,null,null,null,null,null,null,null,null,3,4]
[null,null,null,null,null,null,null,null,null,null,null,null,null,null,null,null,4,4]
[null,null,null,null,null,null,null,null,null,null,null,null,null,null,null,null,3,2]
[null,null,null,null,null,null,null,null,null,null,null,null,null,null,null,null,1]
[null,null,null,null,null,null,null,null,null,null,null,null,null,null,null,null,7]
[null,null,null,null,null,null,null,null,null,null,null,null,null,null,null,null,1,3,2]
[null,null,null,null,null,null,null,null,null,null,null,null,null,null,null,null,1,3,2]
[null,null,null,null,null,null,null,null,null,null,null,null,null,null,null,null,1,3]
[null,null,null,null,null,null,null,null,null,null,null,null,null,null,null,null,5]
[null,null,null,null,null,null,null,null,null,null,null,null,null,null,null,null,2,3,1]
[null,null,null,null,null,null,null,null,null,null,null,null,null,null,null,null,1,3]
[null,null,null,null,null,null,null,null,null,null,null,null,null,null,null,null,1,1]
[null,null,null,null,null,null,null,null,null,null,null,null,null,null,null,null,2]
[null,null,null,null,null,null,null,null,null,null,null,null,null,null,null,null,15]
[null,4,1,3,9,3,1,2,2,1,1,1,2,4,4,2]
[null,1,2,10,2,6,1,2,2,2,null,null,1,1,1,1]
[null,null,1,null,null,1,2,1,1,1]
[null,null,null,null,null,null,1]

{"sheet":"Level24","index":26,"n_rows":26,"n_cols":21,"rows_kept":26,"cut":false,"hidden":false,"merged":[[0,0,0,5]]}
["Back to Game Selection"]
[]
[null,"Nonogram Level Designer",null,null,null,null,null,null,null,null,null,null,null,null,null,null,null,null,null,null,false]
[]
[]
[null,null,null,"Title","Owl"]
[]
[]
[null,null,null,null,null,null,null,null,null,null,null,null,null,null,null,null,4,3]
[null,null,null,null,null,null,null,null,null,null,null,null,null,null,null,null,4,1,1,1]
[null,null,null,null,null,null,null,null,null,null,null,null,null,null,null,null,7,2,2]
[null,null,null,null,null,null,null,null,null,null,null,null,null,null,null,null,7,7]
[null,null,null,null,null,null,null,null,null,null,null,null,null,null,null,null,4,7]
[null,null,null,null,null,null,null,null,null,null,null,null,null,null,null,null,4,7]
[null,null,null,null,null,null,null,null,null,null,null,null,null,null,null,null,4,7]
[null,null,null,null,null,null,null,null,null,null,null,null,null,null,null,null,4,5]
[null,null,null,null,null,null,null,null,null,null,null,null,null,null,null,null,4,1,1]
[null,null,null,null,null,null,null,null,null,null,null,null,null,null,null,null,4,1,1]
[null,null,null,null,null,null,null,null,null,null,null,null,null,null,null,null,12]
[null,null,null,null,null,null,null,null,null,null,null,null,null,null,null,null,12]
[null,null,null,null,null,null,null,null,null,null,null,null,null,null,null,null,4]
[null,null,null,null,null,null,null,null,null,null,null,null,null,null,null,null,4]
[null,null,null,null,null,null,null,null,null,null,null,null,null,null,null,null,4]
[null,2,2,2,15,15,15,15,2,4,7,1,2,1,7,4]
[null,null,null,null,null,null,null,null,null,2,2,10,5,10,2,2]
[null,null,null,null,null,null,null,null,null,null,null,null,2]

{"sheet":"Level25","index":27,"n_rows":30,"n_cols":21,"rows_kept":30,"cut":false,"hidden":false,"merged":[[0,0,0,5]]}
["Back to Game Selection"]
[]
[null,"Nonogram Level Designer",null,null,null,null,null,null,null,null,null,null,null,null,null,null,null,null,null,null,false]
[]
[]
[null,null,null,"Title","Abstract"]
[]
[]
[null,null,null,null,null,null,null,null,null,null,null,null,null,null,null,null,1,1,1,1,1]
[null,null,null,null,null,null,null,null,null,null,null,null,null,null,null,null,5,1,1,1,1]
[null,null,null,null,null,null,null,null,null,null,null,null,null,null,null,null,1,1,1,1,3]
[null,null,null,null,null,null,null,null,null,null,null,null,null,null,null,null,3,1,1,1,1]
[null,null,null,null,null,null,null,null,null,null,null,null,null,null,null,null,1,1,1,1,5]
[null,null,null,null,null,null,null,null,null,null,null,null,null,null,null,null,3,1,1,1]
[null,null,null,null,null,null,null,null,null,null,null,null,null,null,null,null,1,1,7]
[null,null,null,null,null,null,null,null,null,null,null,null,null,null,null,null,5,1]
[null,null,null,null,null,null,null,null,null,null,null,null,null,null,null,null,9]
[null,null,null,null,null,null,null,null,null,null,null,null,null,null,null,null,5]
[null,null,null,null,null,null,null,null,null,null,null,null,null,null,null,null,6,4]
[null,null,null,null,null,null,null,null,null,null,null,null,null,null,null,null,3,1,1]
[null,null,null,null,null,null,null,null,null,null,null,null,null,null,null,null,6,1,1,2]
[null,null,null,null,null,null,null,null,null,null,null,null,null,null,null,null,1,1,1,1,1]
[null,null,null,null,null,null,null,null,null,null,null,null,null,null,null,null,6,1,1,1,1]
[null,1,1,1,1,7,1,9,1,7,1,5,1,3,1,1]
[null,1,1,3,1,2,1,1,1,1,1,1,1,1,1,1]
[null,1,1,1,1,1,1,1,3,1,5,1,1,1,1,1]
[null,1,1,1,1,1,null,null,null,null,null,null,5,1,1,1]
[null,1,1,2,1,null,null,null,null,null,null,null,null,1,1,1]
[null,1,1,1,null,null,null,null,null,null,null,null,null,null,3,1]
[null,2,1,null,null,null,null,null,null,null,null,null,null,null,null,1]

{"sheet":"Level26","index":28,"n_rows":27,"n_cols":21,"rows_kept":27,"cut":false,"hidden":false,"merged":[[0,0,0,5]]}
["Back to Game Selection"]
[]
[null,"Nonogram Level Designer",null,null,null,null,null,null,null,null,null,null,null,null,null,null,null,null,null,null,false]
[]
[]
[null,null,null,"Title","Space Invader"]
[]
[]
[null,null,null,null,null,null,null,null,null,null,null,null,null,null,null,null,4]
[null,null,null,null,null,null,null,null,null,null,null,null,null,null,null,null,10]
[null,null,null,null,null,null,null,null,null,null,null,null,null,null,null,null,12]
[null,null,null,null,null,null,null,null,null,null,null,null,null,null,null,null,3,2,3]
[null,null,null,null,null,null,null,null,null,null,null,null,null,null,null,null,12]
[null,null,null,null,null,null,null,null,null,null,null,null,null,null,null,null,2,2]
[null,null,null,null,null,null,null,null,null,null,null,null,null,null,null,null,2,2,2]
[null,null,null,null,null,null,null,null,null,null,null,null,null,null,null,null,2,2]
[null,null,null,null,null,null,null,null,null,null,null,null,null,null,null,null,1]
[null,null,null,null,null,null,null,null,null,null,null,null,null,null,null,null,1]
[null,null,null,null,null,null,null,null,null,null,null,null,null,null,null,null,1]
[null,null,null,null,null,null,null,null,null,null,null,null,null,null,null,null,3]
[null,null,null,null,null,null,null,null,null,null,null,null,null,null,null,null,9]
[null,null,null,null,null,null,null,null,null,null,null,null,null,null,null,null,11]
[null,null,null,null,null,null,null,null,null,null,null,null,null,null,null,null,11]
[null,3,4,4,2,3,5,5,3,2,4,4,3,3,3,2]
[null,1,1,1,3,2,1,1,2,3,1,1,1]
[null,null,null,null,null,2,2,3,3,4,5,4,3]
[null,null,null,null,null,null,3]

{"sheet":"Level27","index":29,"n_rows":26,"n_cols":21,"rows_kept":26,"cut":false,"hidden":false,"merged":[[0,0,0,5]]}
["Back to Game Selection"]
[]
[null,"Nonogram Level Designer",null,null,null,null,null,null,null,null,null,null,null,null,null,null,null,null,null,null,false]
[]
[]
[null,null,null,"Title","yin-yang"]
[]
[]
[null,null,null,null,null,null,null,null,null,null,null,null,null,null,null,null,5]
[null,null,null,null,null,null,null,null,null,null,null,null,null,null,null,null,9]
[null,null,null,null,null,null,null,null,null,null,null,null,null,null,null,null,11]
[null,null,null,null,null,null,null,null,null,null,null,null,null,null,null,null,5,3,2]
[null,null,null,null,null,null,null,null,null,null,null,null,null,null,null,null,5,3,1]
[null,null,null,null,null,null,null,null,null,null,null,null,null,null,null,null,11,2]
[null,null,null,null,null,null,null,null,null,null,null,null,null,null,null,null,10,1]
[null,null,null,null,null,null,null,null,null,null,null,null,null,null,null,null,9,1]
[null,null,null,null,null,null,null,null,null,null,null,null,null,null,null,null,5,1]
[null,null,null,null,null,null,null,null,null,null,null,null,null,null,null,null,4,1]
[null,null,null,null,null,null,null,null,null,null,null,null,null,null,null,null,3,2,2]
[null,null,null,null,null,null,null,null,null,null,null,null,null,null,null,null,3,2,3]
[null,null,null,null,null,null,null,null,null,null,null,null,null,null,null,null,3,4]
[null,null,null,null,null,null,null,null,null,null,null,null,null,null,null,null,4,5]
[null,null,null,null,null,null,null,null,null,null,null,null,null,null,null,null,10]
[null,5,9,11,13,8,8,3,3,8,7,5,2,2,3,10]
[null,null,null,null,null,2,2,3,3,2,2,2,3,4,5]
[null,null,null,null,null,null,null,2,1,1,1]

{"sheet":"Level28","index":30,"n_rows":26,"n_cols":21,"rows_kept":26,"cut":false,"hidden":false,"merged":[[0,0,0,5]]}
["Back to Game Selection"]
[]
[null,"Nonogram Level Designer",null,null,null,null,null,null,null,null,null,null,null,null,null,null,null,null,null,null,false]
[]
[]
[null,null,null,"Title","Notes"]
[]
[]
[null,null,null,null,null,null,null,null,null,null,null,null,null,null,null,null,5]
[null,null,null,null,null,null,null,null,null,null,null,null,null,null,null,null,5,1]
[null,null,null,null,null,null,null,null,null,null,null,null,null,null,null,null,4,2]
[null,null,null,null,null,null,null,null,null,null,null,null,null,null,null,null,4,5]
[null,null,null,null,null,null,null,null,null,null,null,null,null,null,null,null,2,4,1]
[null,null,null,null,null,null,null,null,null,null,null,null,null,null,null,null,1,3,1]
[null,null,null,null,null,null,null,null,null,null,null,null,null,null,null,null,4,1]
[null,null,null,null,null,null,null,null,null,null,null,null,null,null,null,null,2,1]
[null,null,null,null,null,null,null,null,null,null,null,null,null,null,null,null,1,3]
[null,null,null,null,null,null,null,null,null,null,null,null,null,null,null,null,1,4]
[null,null,null,null,null,null,null,null,null,null,null,null,null,null,null,null,1,4]
[null,null,null,null,null,null,null,null,null,null,null,null,null,null,null,null,3,2]
[null,null,null,null,null,null,null,null,null,null,null,null,null,null,null,null,4]
[null,null,null,null,null,null,null,null,null,null,null,null,null,null,null,null,4]
[null,null,null,null,null,null,null,null,null,null,null,null,null,null,null,null,2]
[null,2,4,4,11,2,2,2,2,2,1,2,2,1,1,11]
[null,null,null,null,null,2,1,2,1,2,1,2,2,1,2]
[null,null,null,null,null,null,null,null,null,null,null,null,2,4,4]

{"sheet":"Level29","index":31,"n_rows":27,"n_cols":21,"rows_kept":27,"cut":false,"hidden":false,"merged":[[0,0,0,5]]}
["Back to Game Selection"]
[]
[null,"Nonogram Level Designer",null,null,null,null,null,null,null,null,null,null,null,null,null,null,null,null,null,null,false]
[]
[]
[null,null,null,"Title","World"]
[]
[]
[null,null,null,null,null,null,null,null,null,null,null,null,null,null,null,null,3]
[null,null,null,null,null,null,null,null,null,null,null,null,null,null,null,null,7]
[null,null,null,null,null,null,null,null,null,null,null,null,null,null,null,null,2,1,1,1,2]
[null,null,null,null,null,null,null,null,null,null,null,null,null,null,null,null,1,2,1,2,1]
[null,null,null,null,null,null,null,null,null,null,null,null,null,null,null,null,1,1,1,1,1]
[null,null,null,null,null,null,null,null,null,null,null,null,null,null,null,null,13]
[null,null,null,null,null,null,null,null,null,null,null,null,null,null,null,null,2,2,1,2,2]
[null,null,null,null,null,null,null,null,null,null,null,null,null,null,null,null,2,1,1,1,2]
[null,null,null,null,null,null,null,null,null,null,null,null,null,null,null,null,2,2,1,2,2]
[null,null,null,null,null,null,null,null,null,null,null,null,null,null,null,null,13]
[null,null,null,null,null,null,null,null,null,null,null,null,null,null,null,null,1,1,1,1,1]
[null,null,null,null,null,null,null,null,null,null,null,null,null,null,null,null,1,2,1,2,1]
[null,null,null,null,null,null,null,null,null,null,null,null,null,null,null,null,2,1,1,1,2]
[null,null,null,null,null,null,null,null,null,null,null,null,null,null,null,null,7]
[null,null,null,null,null,null,null,null,null,null,null,null,null,null,null,null,3]
[null,3,7,2,1,1,3,2,15,2,3,1,1,2,7,3]
[null,null,null,1,5,4,1,1,null,1,1,4,5,1]
[null,null,null,1,1,4,1,1,null,1,1,4,1,1]
[null,null,null,2,null,1,3,2,null,2,3,1,null,2]

{"sheet":"Level30","index":32,"n_rows":25,"n_cols":21,"rows_kept":25,"cut":false,"hidden":false,"merged":[[0,0,0,5]]}
["Back to Game Selection"]
[]
[null,"Nonogram Level Designer",null,null,null,null,null,null,null,null,null,null,null,null,null,null,null,null,null,null,false]
[]
[]
[null,null,null,"Title","Camel"]
[]
[]
[null,null,null,null,null,null,null,null,null,null,null,null,null,null,null,null,2,2,1]
[null,null,null,null,null,null,null,null,null,null,null,null,null,null,null,null,3,3,3]
[null,null,null,null,null,null,null,null,null,null,null,null,null,null,null,null,7,4]
[null,null,null,null,null,null,null,null,null,null,null,null,null,null,null,null,10,2]
[null,null,null,null,null,null,null,null,null,null,null,null,null,null,null,null,11]
[null,null,null,null,null,null,null,null,null,null,null,null,null,null,null,null,12]
[null,null,null,null,null,null,null,null,null,null,null,null,null,null,null,null,12]
[null,null,null,null,null,null,null,null,null,null,null,null,null,null,null,null,11]
[null,null,null,null,null,null,null,null,null,null,null,null,null,null,null,null,1,2,1,1]
[null,null,null,null,null,null,null,null,null,null,null,null,null,null,null,null,2,1,1]
[null,null,null,null,null,null,null,null,null,null,null,null,null,null,null,null,3,1,2]
[null,null,null,null,null,null,null,null,null,null,null,null,null,null,null,null,1,1,1,1]
[null,null,null,null,null,null,null,null,null,null,null,null,null,null,null,null,2,1,1,1]
[null,null,null,null,null,null,null,null,null,null,null,null,null,null,null,null,1,1,1,1]
[null,null,null,null,null,null,null,null,null,null,null,null,null,null,null,null,1,2,2,2]
[null,4,4,10,15,8,6,8,8,14,5,8,7,2,3,2]
[null,3,3,null,null,1,null,null,null,null,1,null,5,1]

{"sheet":"Level31","index":33,"n_rows":27,"n_cols":21,"rows_kept":27,"cut":false,"hidden":false,"merged":[[0,0,0,5]]}
["Back to Game Selection"]
[]
[null,"Nonogram Level Designer",null,null,null,null,null,null,null,null,null,null,null,null,null,null,null,null,null,null,false]
[]
[]
[null,null,null,"Title","Heisenberg"]
[]
[]
[null,null,null,null,null,null,null,null,null,null,null,null,null,null,null,null,11]
[null,null,null,null,null,null,null,null,null,null,null,null,null,null,null,null,11]
[null,null,null,null,null,null,null,null,null,null,null,null,null,null,null,null,11]
[null,null,null,null,null,null,null,null,null,null,null,null,null,null,null,null,15]
[null,null,null,null,null,null,null,null,null,null,null,null,null,null,null,null,15]
[null,null,null,null,null,null,null,null,null,null,null,null,null,null,null,null,1,1]
[null,null,null,null,null,null,null,null,null,null,null,null,null,null,null,null,13]
[null,null,null,null,null,null,null,null,null,null,null,null,null,null,null,null,5,5]
[null,null,null,null,null,null,null,null,null,null,null,null,null,null,null,null,4,4]
[null,null,null,null,null,null,null,null,null,null,null,null,null,null,null,null,1,1]
[null,null,null,null,null,null,null,null,null,null,null,null,null,null,null,null,1,5,1]
[null,null,null,null,null,null,null,null,null,null,null,null,null,null,null,null,1,5,1]
[null,null,null,null,null,null,null,null,null,null,null,null,null,null,null,null,1,1,1,1]
[null,null,null,null,null,null,null,null,null,null,null,null,null,null,null,null,2,1,2]
[null,null,null,null,null,null,null,null,null,null,null,null,null,null,null,null,5]
[null,2,2,11,5,5,5,5,5,5,5,5,5,11,2,2]
[null,null,1,null,3,3,3,2,1,2,3,3,3,null,1]
[null,null,null,null,2,1,5,2,2,2,5,1,2]
[null,null,null,null,null,null,null,1,2,1]

{"sheet":"Level32","index":34,"n_rows":29,"n_cols":23,"rows_kept":29,"cut":false,"hidden":false,"merged":[[0,0,0,5]]}
["Back to Game Selection"]
[]
[null,"Nonogram Level Designer",null,null,null,null,null,null,null,null,null,null,null,null,null,null,null,null,null,null,false]
[]
[]
[null,null,null,"Title","Pattern"]
[]
[]
[null,null,null,null,null,null,null,null,null,null,null,null,null,null,null,null,1,6]
[null,null,null,null,null,null,null,null,null,null,null,null,null,null,null,null,1,6,1]
[null,null,null,null,null,null,null,null,null,null,null,null,null,null,null,null,1,1,1,1,3]
[null,null,null,null,null,null,null,null,null,null,null,null,null,null,null,null,1,1,2,1,1,1,1]
[null,null,null,null,null,null,null,null,null,null,null,null,null,null,null,null,1,1,2,1,1,3]
[null,null,null,null,null,null,null,null,null,null,null,null,null,null,null,null,1,1,2,1,1]
[null,null,null,null,null,null,null,null,null,null,null,null,null,null,null,null,1,1,1,6]
[null,null,null,null,null,null,null,null,null,null,null,null,null,null,null,null,1,6,1]
[null,null,null,null,null,null,null,null,null,null,null,null,null,null,null,null,1,1,4]
[null,null,null,null,null,null,null,null,null,null,null,null,null,null,null,null,10,1]
[null,null,null,null,null,null,null,null,null,null,null,null,null,null,null,null,1,1,2]
[null,null,null,null,null,null,null,null,null,null,null,null,null,null,null,null,4,1,4,2]
[null,null,null,null,null,null,null,null,null,null,null,null,null,null,null,null,1,1,1,1,1]
[null,null,null,null,null,null,null,null,null,null,null,null,null,null,null,null,4,1,1,4]
[null,null,null,null,null,null,null,null,null,null,null,null,null,null,null,null,1,1,2]
[null,10,1,7,1,1,1,1,7,1,10,1,1,1,1,1]
[null,null,3,1,1,3,3,1,1,4,1,1,3,1,3,1]
[null,null,null,1,1,1,1,6,null,null,null,1,1,1,1,1]
[null,null,null,1,1,1,1,null,null,null,null,2,4,1,1,2]
[null,null,null,null,1,3,null,null,null,null,null,null,2,1,4]
[null,null,null,null,null,null,null,null,null,null,null,null,null,1]

{"sheet":"Level33","index":35,"n_rows":29,"n_cols":22,"rows_kept":29,"cut":false,"hidden":false,"merged":[[0,0,0,5]]}
["Back to Game Selection"]
[]
[null,"Nonogram Level Designer",null,null,null,null,null,null,null,null,null,null,null,null,null,null,null,null,null,null,false]
[]
[]
[null,null,null,"Title","Numbers"]
[]
[]
[null,null,null,null,null,null,null,null,null,null,null,null,null,null,null,null,1,3,3,1]
[null,null,null,null,null,null,null,null,null,null,null,null,null,null,null,null,1,1,1,1,1]
[null,null,null,null,null,null,null,null,null,null,null,null,null,null,null,null,1,3,2,4]
[null,null,null,null,null,null,null,null,null,null,null,null,null,null,null,null,1,1,1,1]
[null,null,null,null,null,null,null,null,null,null,null,null,null,null,null,null,1,3,3,1]
[]
[null,null,null,null,null,null,null,null,null,null,null,null,null,null,null,null,15]
[]
[null,null,null,null,null,null,null,null,null,null,null,null,null,null,null,null,3,3,3,3]
[null,null,null,null,null,null,null,null,null,null,null,null,null,null,null,null,1,1,1,1,1]
[null,null,null,null,null,null,null,null,null,null,null,null,null,null,null,null,3,3,1,3]
[null,null,null,null,null,null,null,null,null,null,null,null,null,null,null,null,1,1,1,1,1,1]
[null,null,null,null,null,null,null,null,null,null,null,null,null,null,null,null,3,3,1,3]
[]
[null,null,null,null,null,null,null,null,null,null,null,null,null,null,null,null,15]
[null,5,1,1,1,3,1,1,1,5,1,3,1,4,1,1]
[null,1,1,3,1,1,1,1,1,1,1,1,1,1,1,5]
[null,3,1,1,1,1,1,1,1,1,1,5,1,5,1,1]
[null,1,1,1,1,5,1,1,1,1,null,1,null,1,1]
[null,1,1,3,1,1,1,3,1,null,null,null,null,null,1]
[null,null,null,1,null,null,null,1,null,null,null,null,null,null,1]

{"sheet":"Level34","index":36,"n_rows":27,"n_cols":21,"rows_kept":27,"cut":false,"hidden":false,"merged":[[0,0,0,5]]}
["Back to Game Selection"]
[]
[null,"Nonogram Level Designer",null,null,null,null,null,null,null,null,null,null,null,null,null,null,null,null,null,null,true]
[]
[]
[null,null,null,"Title","Vampire"]
[]
[]
[null,null,null,null,null,null,null,null,null,null,null,null,null,null,null,null,8]
[null,null,null,null,null,null,null,null,null,null,null,null,null,null,null,null,10]
[null,null,null,null,null,null,null,null,null,null,null,null,null,null,null,null,11]
[null,null,null,null,null,null,null,null,null,null,null,null,null,null,null,null,2,3,2]
[null,null,null,null,null,null,null,null,null,null,null,null,null,null,null,null,1,2,4,3,1]
[null,null,null,null,null,null,null,null,null,null,null,null,null,null,null,null,7,7]
[null,null,null,null,null,null,null,null,null,null,null,null,null,null,null,null,7,7]
[null,null,null,null,null,null,null,null,null,null,null,null,null,null,null,null,15]
[null,null,null,null,null,null,null,null,null,null,null,null,null,null,null,null,4,4]
[null,null,null,null,null,null,null,null,null,null,null,null,null,null,null,null,5,1,6]
[null,null,null,null,null,null,null,null,null,null,null,null,null,null,null,null,11]
[null,null,null,null,null,null,null,null,null,null,null,null,null,null,null,null,9]
[null,null,null,null,null,null,null,null,null,null,null,null,null,null,null,null,1,5,1]
[null,null,null,null,null,null,null,null,null,null,null,null,null,null,null,null,2,7,2]
[null,null,null,null,null,null,null,null,null,null,null,null,null,null,null,null,15]
[null,5,5,10,12,3,3,8,5,8,3,3,11,9,5,6]
[null,3,2,1,1,3,4,5,1,5,3,4,1,1,2,3]
[null,null,null,null,null,3,6,null,6,null,6,3]
[null,null,null,null,null,2,null,null,null,null,null,2]

{"sheet":"Level35","index":37,"n_rows":26,"n_cols":21,"rows_kept":26,"cut":false,"hidden":false,"merged":[[0,0,0,5]]}
["Back to Game Selection"]
[]
[null,"Nonogram Level Designer",null,null,null,null,null,null,null,null,null,null,null,null,null,null,null,null,null,null,true]
[]
[]
[null,null,null,"Title","Witch"]
[]
[]
[null,null,null,null,null,null,null,null,null,null,null,null,null,null,null,null,1]
[null,null,null,null,null,null,null,null,null,null,null,null,null,null,null,null,2]
[null,null,null,null,null,null,null,null,null,null,null,null,null,null,null,null,4]
[null,null,null,null,null,null,null,null,null,null,null,null,null,null,null,null,2]
[null,null,null,null,null,null,null,null,null,null,null,null,null,null,null,null,2]
[null,null,null,null,null,null,null,null,null,null,null,null,null,null,null,null,1]
[null,null,null,null,null,null,null,null,null,null,null,null,null,null,null,null,3]
[null,null,null,null,null,null,null,null,null,null,null,null,null,null,null,null,4]
[null,null,null,null,null,null,null,null,null,null,null,null,null,null,null,null,3,1]
[null,null,null,null,null,null,null,null,null,null,null,null,null,null,null,null,4,4,2]
[null,null,null,null,null,null,null,null,null,null,null,null,null,null,null,null,14]
[null,null,null,null,null,null,null,null,null,null,null,null,null,null,null,null,4,1,1]
[null,null,null,null,null,null,null,null,null,null,null,null,null,null,null,null,1,2]
[null,null,null,null,null,null,null,null,null,null,null,null,null,null,null,null,1]
[null,null,null,null,null,null,null,null,null,null,null,null,null,null,null,null,1]
[null,1,3,3,3,1,3,2,1,13,4,1,1,2,2,1]
[null,1,null,null,null,null,null,null,5,null,5,1,1]
[null,null,null,null,null,null,null,null,3,null,null,1]